bitfinex/quotes_ETHUSD_20250925
["timestamp","ask_amount","ask_price","bid_price","bid_amount"]
[1758774396245,0.02485784,4038.8,4038.2,0.6791]
[1758774396583,0.02485784,4038.8,4038.2,3.1554479]
[1758774396758,0.02485784,4038.8,4038.5,2.47615806]
[1758774396958,0.02485784,4038.8,4038.4,2.47621194]
[1758774397156,3.0,4038.8,4038.4,2.47617549]
[1758774397370,2.063,4039.5,4038.8,2.47596568]
[1758774397673,3.0,4039.3,4039.1,2.47574933]
[1758774397980,3.0,4039.3,4038.8,2.72355627]
[1758774398183,3.0,4039.3,4038.2,0.002]
[1758774398382,3.0,4039.3,4038.5,2.47616625]
[1758774398679,0.02485784,4039.2,4038.3,0.6771]
[1758774398879,2.47580356,4039.1,4038.3,0.2476]
[1758774399044,2.47604352,4038.8,4038.2,0.002]
[1758774399249,7.58771991,4039.0,4038.2,0.002]
[1758774399250,2.47611443,4038.6,4038.2,0.002]
[1758774399449,0.02485784,4038.7,4038.2,0.002]
[1758774399450,4.86885784,4038.5,4038.2,0.002]
[1758774399750,4.844,4038.5,4038.2,0.002]
[1758774399951,0.02485784,4038.4,4038.2,0.002]
[1758774400154,0.02485784,4038.4,4038.3,0.002]
[1758774401161,3.02485784,4038.4,4038.3,0.002]
[1758774401680,5.50108604,4038.4,4038.3,0.002]
[1758774401849,5.4762282,4038.4,4038.3,0.002]
[1758774402650,3.2479,4038.4,4038.3,0.002]
[1758774402858,3.0,4038.4,4038.3,0.002]
[1758774403088,2.4762282,4038.4,4038.3,0.002]
[1758774403390,2.74898604,4038.4,4038.3,0.002]
[1758774403762,3.17918604,4038.4,4038.3,0.002]
[1758774403965,6.17918604,4038.4,4038.3,0.002]
[1758774404260,6.1543282,4038.4,4038.3,0.002]
[1758774404851,8.2183282,4038.4,4038.3,0.002]
[1758774405052,9.0103282,4038.4,4038.3,0.002]
[1758774406355,9.0103282,4038.4,4038.2,0.002]
[1758774406356,6.26828952,4038.3,4038.2,0.002]
[1758774406584,6.26835084,4038.2,4038.1,0.02]
[1758774406888,6.26835084,4038.2,4037.1,0.02]
[1758774406889,2.47696423,4037.2,4037.1,0.02]
[1758774407091,5.47696423,4037.2,4037.1,0.02]
[1758774407391,7.834,4037.2,4037.1,0.02]
[1758774407891,7.834,4037.2,4037.1,3.18902558]
[1758774407892,3.0,4037.2,4037.1,3.18902558]
[1758774409294,3.0,4037.2,4037.1,0.02]
[1758774410290,3.0,4037.2,4037.1,0.2639]
[1758774410500,3.0,4037.2,4037.1,3.18902558]
[1758774410658,0.38843408,4038.2,4037.2,2.47696423]
[1758774410857,0.38843408,4038.2,4038.0,2.4764237]
[1758774411059,7.829,4038.1,4038.0,3.1684237]
[1758774412368,3.0,4038.0,4037.6,0.2439]
[1758774412572,0.02485784,4038.0,4037.8,2.47654328]
[1758774412794,18.37119015,4038.9,4037.9,0.692]
[1758774413004,0.2479,4039.3,4038.0,0.2439]
[1758774413219,2.064,4039.3,4038.0,0.692]
[1758774413367,7.30275051,4039.2,4038.5,2.47615304]
[1758774413562,3.0,4039.1,4038.5,2.47615304]
[1758774413895,18.37119015,4039.6,4038.8,2.47594767]
[1758774414098,7.30055488,4039.5,4038.8,2.47594767]
[1758774414269,3.0,4039.4,4038.6,2.47606641]
[1758774414697,3.0,4039.4,4038.8,2.4759344]
[1758774414905,3.0,4039.4,4038.7,0.2439]
[1758774415090,3.0,4039.2,4038.3,0.2439]
[1758774415272,3.0,4039.0,4037.9,0.4481]
[1758774415477,3.0,4038.8,4038.0,0.2439]
[1758774415680,2.064,4039.4,4038.7,2.47604427]
[1758774415879,3.0,4039.2,4038.7,2.47604427]
[1758774416090,3.0,4039.2,4038.7,0.692]
[1758774416307,21.23501534,4039.6,4038.8,0.692]
[1758774416308,3.0,4039.5,4038.8,0.692]
[1758774416462,3.0,4039.3,4039.0,2.47585627]
[1758774416974,4.822,4039.2,4039.0,0.2439]
[1758774417176,4.822,4039.2,4039.1,2.47579906]
[1758774418118,4.822,4039.4,4039.0,2.47583269]
[1758774418319,4.84685784,4039.3,4039.0,2.47584595]
[1758774418521,4.82,4039.2,4039.1,3.19255705]
[1758774418713,0.02,4039.9,4039.5,2.47554326]
[1758774419013,3.0,4039.7,4039.1,0.692]
[1758774419208,3.0,4039.7,4038.7,0.2439]
[1758774419209,0.02485784,4039.6,4038.7,0.2439]
[1758774419394,3.0,4039.4,4039.3,2.47567647]
[1758774419600,3.0,4039.4,4039.3,3.16767647]
[1758774420199,3.02485784,4039.4,4039.3,2.47567647]
[1758774420400,3.0,4039.4,4039.3,2.47567647]
[1758774420773,3.02485784,4039.4,4039.3,2.47567647]
[1758774420966,3.02485784,4039.4,4039.1,2.47574562]
[1758774421172,3.02485784,4039.4,4038.8,2.47598064]
[1758774421546,3.02485784,4039.4,4038.7,2.47599987]
[1758774421869,3.02485784,4039.4,4038.6,2.47610241]
[1758774422066,3.0,4039.4,4038.9,2.47591058]
[1758774422523,0.001,4039.5,4038.1,0.002]
[1758774422812,0.001,4039.5,4039.0,0.6941]
[1758774422813,4.813,4039.4,4039.0,0.6941]
[1758774423109,4.813,4039.4,4038.3,0.2256]
[1758774423110,3.02485784,4039.3,4038.3,0.2256]
[1758774423305,3.02485784,4039.3,4039.1,2.47578454]
[1758774423599,3.02485784,4039.3,4039.2,3.16983776]
[1758774423600,3.0,4039.3,4039.2,3.16983776]
[1758774425300,3.0,4039.3,4038.9,0.2256]
[1758774425505,3.0,4039.3,4039.2,2.47573776]
[1758774426234,3.0,4039.3,4039.1,2.47579906]
[1758774426432,3.0,4039.3,4038.9,0.4685]
[1758774426604,3.0,4039.3,4039.1,0.2256]
[1758774427006,3.0,4039.3,4039.2,2.47573776]
[1758774427314,3.0,4039.3,4039.1,0.2256]
[1758774427629,3.0,4039.3,4039.1,2.70139532]
[1758774427836,3.0,4039.3,4039.1,0.2256]
[1758774428437,3.0,4039.3,4039.1,2.47574927]
[1758774428732,3.0,4039.3,4039.2,2.70133776]
[1758774428914,3.0,4039.3,4039.2,3.16983776]
[1758774429315,7.807,4039.5,4039.4,2.47561519]
[1758774429632,7.807,4039.5,4039.4,3.16971519]
[1758774430015,7.807,4039.5,4039.4,2.70121519]
[1758774430357,3.001,4039.5,4039.4,7.40871517]
[1758774430504,0.02,4039.9,4039.8,2.47537006]
[1758774430708,4.823,4039.9,4039.8,3.71337004]
[1758774431546,4.823,4039.9,4039.8,4.38307004]
[1758774432531,3.02,4039.9,4039.8,1.47609998]
[1758774432733,3.02,4039.9,4039.8,1.23799998]
[1758774432937,7.82,4039.9,4039.8,1.23799998]
[1758774433109,7.82,4039.9,4039.8,2.47537006]
[1758774433316,7.819,4039.9,4039.8,3.14507006]
[1758774435451,0.02,4039.9,4039.8,4.67451414]
[1758774435836,0.02,4039.9,4039.8,9.49526784]
[1758774436041,0.02,4039.9,4039.8,9.47051414]
[1758774436238,4.795,4040.7,4040.6,2.47487996]
[1758774436454,0.02,4040.9,4040.8,2.47475747]
[1758774436751,0.10859888,4041.8,4041.1,2.47457375]
[1758774436918,0.10859888,4041.8,4041.1,2.49931948]
[1758774437118,3.00100001,4041.9,4041.1,3.16901948]
[1758774437119,0.00100001,4041.9,4041.1,3.16901948]
[1758774437316,0.00100001,4041.9,4041.1,3.14427375]
[1758774438114,0.00100001,4041.9,4041.1,3.16901948]
[1758774438353,0.00100001,4041.9,4041.1,4.5290735]
[1758774438519,0.00100001,4041.9,4041.1,4.50432777]
[1758774438720,0.001,4041.7,4041.1,4.50432777]
[1758774439454,0.001,4041.7,4041.1,7.93327375]
[1758774439754,0.001,4041.7,4041.1,7.50167375]
[1758774440151,0.001,4041.7,4041.1,7.93327375]
[1758774440570,0.001,4041.7,4041.1,8.84847375]
[1758774440955,0.001,4041.7,4041.1,8.84647375]
[1758774441270,0.001,4041.7,4041.1,10.047399]
[1758774441638,0.001,4041.7,4041.6,2.47426761]
[1758774441957,0.001,4041.7,4041.6,3.70926758]
[1758774442144,0.001,4041.7,4041.6,8.49526758]
[1758774442555,0.001,4041.7,4041.6,8.73236758]
[1758774443277,0.001,4041.7,4041.6,10.32780196]
[1758774443445,0.001,4041.7,4041.6,11.11980196]
[1758774444038,0.001,4041.7,4041.6,18.30980196]
[1758774444435,0.001,4041.7,4041.6,6.33480196]
[1758774444634,0.001,4041.7,4041.6,11.11680196]
[1758774444836,0.001,4041.7,4041.6,10.32480196]
[1758774445278,0.001,4041.7,4041.6,5.54280196]
[1758774445450,0.001,4041.7,4041.6,10.32380196]
[1758774446072,0.001,4041.7,4041.6,10.32280196]
[1758774447380,1e-08,4042.1,4042.0,2.47402276]
[1758774447546,1e-08,4042.1,4042.0,8.73342501]
[1758774447740,1e-08,4042.1,4042.0,9.40312501]
[1758774448848,1e-08,4042.1,4042.0,10.19512501]
[1758774449259,1e-08,4042.9,4042.8,3.26553319]
[1758774449553,1e-08,4042.9,4042.8,2.80008651]
[1758774449754,1e-08,4042.9,4042.8,7.24753319]
[1758774450347,1e-08,4042.9,4042.8,8.27763319]
[1758774450548,1e-08,4042.9,4042.8,8.70923319]
[1758774451600,1e-08,4042.9,4042.8,8.27763319]
[1758774451775,1e-08,4042.9,4042.8,8.70923319]
[1758774451949,1e-08,4042.9,4042.8,9.83983784]
[1758774454184,1e-08,4042.9,4042.8,11.07483781]
[1758774454348,1e-08,4042.9,4042.8,6.30083781]
[1758774454550,1e-08,4042.9,4042.8,5.63113781]
[1758774454785,1e-08,4042.9,4042.8,10.63623781]
[1758774454949,1e-08,4042.9,4042.8,10.39813781]
[1758774455152,1e-08,4042.9,4042.8,4.83913781]
[1758774455352,1e-08,4042.9,4042.8,8.47353316]
[1758774455560,1e-08,4042.9,4042.8,2.47353319]
[1758774455776,1e-08,4042.9,4042.8,7.23853319]
[1758774456354,0.00100001,4042.9,4042.8,7.23853319]
[1758774456558,0.00100001,4042.9,4042.8,8.92261186]
[1758774456786,0.00100001,4042.9,4042.8,9.71461186]
[1758774459473,0.00100001,4042.9,4042.8,12.71461186]
[1758774460566,0.00100001,4042.9,4042.8,21.13961183]
[1758774460958,0.00100001,4042.9,4042.8,9.19221183]
[1758774461162,0.00100001,4042.9,4042.8,15.56781183]
[1758774461597,0.00100001,4042.9,4042.8,15.56681183]
[1758774462947,0.00100001,4042.9,4042.8,16.01021183]
[1758774464198,0.00100001,4042.9,4042.8,14.77521186]
[1758774465448,0.00100001,4042.9,4042.8,4.27991186]
[1758774465745,0.00100001,4042.9,4042.8,2.47353319]
[1758774465948,0.70280001,4042.9,4042.8,7.22453319]
[1758774466318,0.00100001,4042.9,4042.8,7.22453319]
[1758774466705,0.00100001,4042.9,4042.8,8.01653319]
[1758774466910,0.00100001,4042.9,4042.8,2.47353319]
[1758774467105,0.00100001,4042.9,4042.8,7.22353319]
[1758774467347,0.00100001,4042.9,4042.8,7.22253319]
[1758774467557,0.23680001,4042.9,4042.8,7.22253319]
[1758774467763,0.00100001,4042.9,4042.8,7.22253319]
[1758774468457,0.00100001,4042.9,4042.8,8.19214776]
[1758774468661,0.00100001,4042.9,4042.8,8.42604776]
[1758774469010,0.00100001,4042.9,4042.8,8.86944776]
[1758774469267,0.00100001,4042.9,4042.8,9.66144776]
[1758774469413,0.00100001,4042.9,4042.8,8.98414776]
[1758774469608,0.00100001,4042.9,4042.8,8.01453319]
[1758774470435,0.00100001,4042.9,4042.8,7.22253319]
[1758774471142,0.00100001,4042.9,4042.8,2.47353319]
[1758774471329,0.23680001,4042.9,4042.8,7.22053319]
[1758774471853,0.70280001,4042.9,4042.8,2.47353319]
[1758774472052,0.70280001,4042.9,4042.8,7.21753319]
[1758774472272,0.70280001,4042.9,4042.8,2.47353319]
[1758774472436,0.70280001,4042.9,4042.8,7.21653319]
[1758774473033,0.00100001,4042.9,4042.8,7.21653319]
[1758774473659,0.00100001,4042.9,4042.8,7.95676818]
[1758774473958,0.00100001,4042.9,4042.8,8.63406818]
[1758774474533,0.00100001,4042.9,4042.8,8.19066818]
[1758774474736,0.23680001,4042.9,4042.8,7.21353319]
[1758774475060,0.70280001,4042.9,4042.8,2.47553319]
[1758774475228,0.70280001,4042.9,4042.8,7.21553319]
[1758774475641,0.23680001,4042.9,4042.8,7.21553319]
[1758774475844,0.00100001,4042.9,4042.8,7.21553319]
[1758774476989,0.00100001,4042.9,4042.8,7.21353319]
[1758774477275,0.23680001,4042.9,4042.8,7.21353319]
[1758774477441,0.00100001,4042.9,4042.8,7.21353319]
[1758774479081,0.001,4043.4,4043.3,2.47322731]
[1758774479372,0.001,4043.4,4043.3,8.44522727]
[1758774479571,0.7028,4043.4,4043.3,8.44522727]
[1758774479976,0.7028,4043.4,4043.3,1.23399996]
[1758774480177,0.7028,4043.4,4043.3,3.70722727]
[1758774480477,0.001,4043.4,4043.3,3.70722727]
[1758774482076,0.686,4043.4,4043.3,1.23399996]
[1758774482280,0.686,4043.4,4043.3,3.70722727]
[1758774484386,0.001,4043.4,4043.3,3.70722727]
[1758774484538,0.001,4043.4,4043.3,3.73195954]
[1758774484742,0.001,4043.4,4043.3,3.70722727]
[1758774484988,0.2395,4043.4,4043.3,1.23399996]
[1758774485166,0.686,4043.4,4043.3,1.23399996]
[1758774485346,0.686,4043.4,4043.3,5.96199996]
[1758774485565,0.686,4043.4,4043.3,1.23399996]
[1758774485794,0.686,4043.4,4043.3,3.70722727]
[1758774487889,0.686,4043.4,4043.3,1.23399996]
[1758774488197,0.686,4043.4,4043.3,3.70722727]
[1758774488497,0.2395,4043.4,4043.3,3.70722727]
[1758774488688,0.001,4043.4,4043.3,3.70722727]
[1758774489094,0.001,4043.4,4043.3,8.45595954]
[1758774489290,0.001,4043.4,4043.3,8.43122727]
[1758774489479,0.001,4043.8,4043.7,2.47298266]
[1758774489663,0.001,4043.8,4043.7,7.19598266]
[1758774489868,0.001,4043.8,4043.7,7.43978266]
[1758774490187,1e-08,4043.9,4043.8,2.4729215]
[1758774490387,1e-08,4043.9,4043.8,4.188035]
[1758774490590,1e-08,4043.9,4043.8,5.42103496]
[1758774490800,1e-08,4043.9,4043.8,5.39630575]
[1758774491380,1e-08,4043.9,4043.8,4.16330579]
[1758774491580,1e-08,4043.9,4043.8,4.188035]
[1758774491785,1e-08,4043.9,4043.8,4.16330579]
[1758774492094,1e-08,4043.9,4043.8,10.48900579]
[1758774492471,1e-08,4043.9,4043.8,10.91720579]
[1758774493283,1e-08,4043.9,4043.8,10.24520579]
[1758774494398,1e-08,4043.9,4043.8,10.48520579]
[1758774494709,1e-08,4043.9,4043.8,10.91340579]
[1758774495795,0.00100001,4043.9,4043.8,11.70540579]
[1758774496182,0.00100001,4043.9,4043.8,12.93840575]
[1758774496496,0.11362729,4045.5,4045.4,2.47194344]
[1758774496816,0.2571,4045.9,4045.8,2.47169904]
[1758774496817,0.02,4045.9,4045.8,2.47169904]
[1758774497021,0.02,4045.9,4045.8,7.18469904]
[1758774497679,0.02,4045.9,4045.6,2.4717797]
[1758774497680,0.6924,4045.9,4045.7,4.712]
[1758774497903,0.69725784,4045.8,4044.2,2.47267692]
[1758774498228,0.6724,4045.7,4045.0,2.47217685]
[1758774498382,0.69725784,4045.6,4045.0,7.18317685]
[1758774498803,0.6724,4045.5,4045.0,7.18317712]
[1758774499008,0.69725784,4045.4,4045.1,2.47212128]
[1758774499309,0.6724,4045.3,4045.0,4.711]
[1758774499475,0.6724,4045.3,4044.0,2.061]
[1758774499476,0.69725784,4045.2,4044.0,2.061]
[1758774499678,0.6724,4045.1,4044.1,4.709]
[1758774499923,0.69725784,4045.0,4044.1,4.709]
[1758774500091,0.02485784,4045.0,4044.7,2.47233099]
[1758774500279,0.6724,4044.9,4044.7,4.709]
[1758774500493,0.69725784,4044.8,4043.6,2.061]
[1758774500702,0.69725784,4044.8,4044.2,2.47267396]
[1758774500703,0.6724,4044.7,4044.2,2.47267396]
[1758774501026,0.69725784,4044.6,4044.3,2.47261217]
[1758774501190,0.02485784,4044.6,4044.3,2.47261217]
[1758774501391,0.6724,4044.5,4044.3,2.47255857]
[1758774501617,0.6724,4044.5,4044.4,2.47255464]
[1758774501823,0.2371,4044.9,4044.1,4.708]
[1758774501995,0.2371,4044.9,4044.2,0.02472676]
[1758774502391,0.2371,4044.9,4044.5,2.47248097]
[1758774502596,0.6724,4044.8,4044.4,2.47254002]
[1758774502824,0.69725784,4044.7,4044.2,1.23299996]
[1758774503131,0.69725784,4044.7,4043.6,2.061]
[1758774503132,0.6724,4044.6,4043.7,1.23299996]
[1758774503296,0.6724,4044.6,4044.2,2.47262516]
[1758774503494,0.2371,4044.5,4044.2,2.47262516]
[1758774503795,0.2371,4044.5,4043.9,0.0247286]
[1758774504121,0.2371,4044.5,4044.2,2.47261878]
[1758774504522,2.47225558,4044.9,4044.1,1.23299996]
[1758774504686,2.7094175,4044.8,4044.0,1.23299996]
[1758774504892,3.0,4044.6,4043.2,1.23299996]
[1758774505094,2.47275283,4044.1,4043.1,2.49333262]
[1758774505292,0.2371,4044.0,4043.3,2.47321894]
[1758774505528,0.2371,4043.9,4043.4,2.47314919]
[1758774505850,3.0,4043.7,4043.1,0.02]
[1758774506139,0.02485784,4043.6,4043.1,0.02]
[1758774506341,0.6724,4043.5,4043.2,2.47328848]
[1758774506541,0.02485784,4043.4,4043.1,2.49333659]
[1758774506707,0.02485784,4043.4,4043.1,0.02]
[1758774507196,0.26195784,4043.4,4043.2,2.47328627]
[1758774507393,0.26195784,4043.4,4043.3,2.47322731]
[1758774507605,0.6724,4043.7,4043.4,2.47316254]
[1758774507805,0.02485784,4043.6,4043.4,2.47316254]
[1758774508009,0.02485784,4043.6,4043.1,2.49334649]
[1758774508010,0.02485784,4043.6,4043.3,2.47321498]
[1758774508329,0.02485784,4043.6,4043.2,2.47328047]
[1758774508534,0.26195784,4043.6,4043.2,2.47328047]
[1758774509050,0.26195784,4043.6,4043.1,0.02]
[1758774509208,0.02485784,4043.6,4043.1,0.02]
[1758774509529,3.6724,4043.5,4043.1,0.02]
[1758774509703,0.69725784,4043.4,4043.1,0.02]
[1758774509904,0.26195784,4043.4,4043.1,0.02]
[1758774510128,0.6724,4043.3,4043.1,0.02]
[1758774510308,0.02485784,4043.2,4043.1,0.02]
[1758774510709,0.26195784,4043.2,4043.1,0.02]
[1758774511108,0.792,4044.2,4043.1,0.02]
[1758774511328,0.2371,4043.8,4043.1,2.49334965]
[1758774511635,5.47281953,4044.0,4043.2,2.47323204]
[1758774511932,2.47292673,4043.8,4043.1,2.4933403]
[1758774512340,2.47293223,4043.8,4043.1,2.49333563]
[1758774512519,0.6724,4043.9,4043.2,2.47328043]
[1758774512831,0.02485784,4043.8,4043.2,2.47328848]
[1758774513013,2.47298693,4043.7,4043.1,0.022]
[1758774513215,3.0,4043.8,4043.2,2.47328173]
[1758774513433,0.6724,4043.9,4043.1,2.49533345]
[1758774513638,0.26195784,4043.8,4043.1,0.022]
[1758774513836,2.47308689,4043.6,4043.1,0.022]
[1758774514040,3.17037128,4043.5,4043.1,0.022]
[1758774514348,0.69725784,4043.5,4043.1,0.022]
[1758774514503,0.26195784,4043.5,4043.1,0.022]
[1758774514836,0.26195784,4043.5,4043.2,1.23299996]
[1758774515036,0.4353,4043.7,4043.2,1.23299996]
[1758774515334,0.2371,4043.8,4043.2,3.70627872]
[1758774515539,0.2371,4043.8,4043.2,3.70628685]
[1758774515843,3.0,4043.7,4043.2,3.7062821]
[1758774516330,3.0,4043.7,4043.5,2.47308587]
[1758774516641,3.0,4043.7,4043.6,2.47304382]
[1758774516858,0.4353,4044.1,4043.6,2.47304382]
[1758774516859,0.2371,4044.7,4043.6,1.90119996]
[1758774517142,0.797,4044.8,4044.6,2.47241757]
[1758774517638,0.6249366,4045.2,4044.0,3.14095663]
[1758774517813,0.3878366,4045.2,4045.1,2.47212677]
[1758774518014,4.9251,4045.5,4044.5,0.24]
[1758774518228,4.9251,4045.5,4045.0,2.47216194]
[1758774518536,0.40873975,4045.9,4045.1,0.24]
[1758774518735,4.687,4045.7,4045.6,2.47182123]
[1758774519106,7.687,4045.7,4045.6,2.47182123]
[1758774519711,0.021,4045.9,4045.0,0.4282]
[1758774519912,0.021,4045.9,4045.8,2.47169904]
[1758774520343,0.021,4045.9,4045.8,3.13989904]
[1758774520643,0.021,4045.9,4045.8,2.47169904]
[1758774521145,0.021,4045.9,4045.2,0.2321]
[1758774521318,0.021,4045.9,4045.7,2.47175627]
[1758774521524,0.02485784,4045.8,4045.5,2.47187109]
[1758774521722,0.693,4045.7,4044.5,0.7045]
[1758774522045,0.693,4045.7,4042.4,0.002]
[1758774522046,2.47188233,4045.5,4044.6,2.47243237]
[1758774522346,2.72883078,4045.4,4044.2,3.2321]
[1758774522560,2.47201443,4045.3,4044.5,2.47243909]
[1758774522709,2.4969336,4045.2,4044.4,2.47253854]
[1758774522908,0.25685784,4045.2,4044.2,2.47262652]
[1758774523142,2.47232305,4044.8,4044.0,2.47275432]
[1758774523312,0.27209014,4044.7,4043.8,2.47290826]
[1758774523512,2.74450646,4044.7,4043.8,2.47287586]
[1758774523727,5.47244186,4044.6,4043.9,2.47284186]
[1758774524065,0.34951876,4044.5,4043.9,2.47284186]
[1758774524257,0.38777385,4045.0,4043.8,0.2321]
[1758774524416,3.0,4044.5,4044.1,2.47268318]
[1758774524762,0.693,4044.4,4043.7,2.47295555]
[1758774524940,0.71785784,4044.4,4043.7,2.47297384]
[1758774525112,0.71785784,4044.4,4043.8,2.47292062]
[1758774525313,0.38777385,4045.0,4044.3,2.47260116]
[1758774525544,3.0,4044.8,4044.4,2.47255265]
[1758774525715,0.38777385,4045.0,4044.9,2.472249]
[1758774525966,2.061,4045.5,4045.0,2.47217014]
[1758774526122,3.0,4045.3,4044.5,0.2321]
[1758774526456,3.0,4045.3,4045.0,2.47213911]
[1758774526671,3.0,4045.5,4045.3,2.47198148]
[1758774526949,3.0,4045.5,4045.0,0.2321]
[1758774527252,3.02485784,4045.5,4045.1,2.47211307]
[1758774527412,3.02485784,4045.5,4045.1,2.47206921]
[1758774527747,3.02485784,4045.5,4045.0,2.47217583]
[1758774527946,3.02485784,4045.5,4044.5,0.2321]
[1758774527947,3.71785784,4045.5,4044.5,0.2321]
[1758774528249,3.71785784,4045.5,4044.9,2.47219985]
[1758774528449,3.48585784,4045.5,4044.1,0.2321]
[1758774528614,3.48585784,4045.5,4044.0,0.4724]
[1758774528615,5.4720053,4045.3,4044.2,2.47263155]
[1758774528814,2.47219089,4045.0,4044.2,2.47263155]
[1758774529033,3.0,4044.8,4044.3,2.47259478]
[1758774529241,0.02485784,4044.7,4043.9,0.2321]
[1758774529446,3.0,4044.8,4044.2,2.47266642]
[1758774529649,0.02485784,4044.6,4043.9,2.4728241]
[1758774529824,0.02485784,4044.6,4044.0,2.47279084]
[1758774530029,0.02485784,4044.6,4044.2,2.47267565]
[1758774530339,0.02485784,4044.6,4043.9,2.47285224]
[1758774530569,0.232,4044.6,4043.9,2.47285224]
[1758774530728,0.232,4044.6,4044.1,2.47272411]
[1758774530927,3.0,4044.8,4043.9,2.47285224]
[1758774530928,3.0,4044.8,4044.2,2.47267463]
[1758774531534,0.02485784,4044.7,4044.1,2.47273184]
[1758774531750,3.0,4044.8,4044.2,2.47266698]
[1758774532127,3.0,4044.8,4043.9,2.47285224]
[1758774532128,0.02485784,4044.7,4044.1,2.4727227]
[1758774532329,3.0,4044.8,4044.1,2.4727227]
[1758774532525,3.0,4044.8,4044.2,2.47266885]
[1758774532863,3.0,4044.6,4044.5,2.4724935]
[1758774533064,2.70389942,4045.5,4044.5,2.7045935]
[1758774533363,3.0,4045.3,4044.5,2.7045935]
[1758774533516,3.0,4045.1,4044.8,2.47229499]
[1758774533857,3.0,4045.1,4044.9,2.47224116]
[1758774534165,4.667,4045.3,4045.2,2.47206565]
[1758774534564,4.667,4045.3,4044.1,2.47272778]
[1758774534565,3.0,4045.2,4044.2,1.23299996]
[1758774534866,3.25540328,4045.2,4044.6,2.47242553]
[1758774535019,0.25540328,4045.2,4044.2,1.23299996]
[1758774535220,3.0,4045.0,4044.9,2.47219366]
[1758774535466,3.0,4045.4,4045.0,2.47213081]
[1758774535682,3.461,4045.4,4044.2,1.46509996]
[1758774535955,0.232,4045.3,4044.2,1.46509996]
[1758774536161,3.0,4045.2,4044.3,2.47261578]
[1758774536368,3.232,4045.3,4044.4,2.47254784]
[1758774536661,3.0,4045.4,4044.5,0.7045]
[1758774536962,0.71785784,4045.3,4044.4,2.4725064]
[1758774537168,5.47210826,4045.2,4044.5,2.47248339]
[1758774537371,5.47210826,4045.2,4044.2,1.23299996]
[1758774537372,3.0,4045.0,4044.2,1.23299996]
[1758774537656,2.47231168,4044.8,4044.2,1.23299996]
[1758774537857,0.02485784,4044.7,4044.2,1.23299996]
[1758774538060,3.0,4044.5,4044.2,1.23299996]
[1758774538243,7.663,4045.0,4044.4,2.47250786]
[1758774538534,7.663,4045.0,4044.3,3.70560428]
[1758774538870,7.663,4045.0,4044.3,1.23299996]
[1758774539371,10.13519386,4045.0,4044.3,1.23299996]
[1758774539545,7.663,4045.0,4044.3,1.23299996]
[1758774539877,3.0,4044.8,4044.7,2.47231764]
[1758774540172,4.662,4044.9,4044.3,1.23299996]
[1758774540348,4.662,4044.9,4044.5,2.47244556]
[1758774540554,4.662,4044.9,4044.4,2.47255228]
[1758774540863,4.662,4044.9,4044.4,2.4725015]
[1758774541019,4.98901543,4044.9,4044.5,2.47249002]
[1758774541418,3.32701543,4044.9,4044.6,0.2356]
[1758774541619,4.659,4045.0,4044.6,0.2356]
[1758774541824,24.71036801,4045.6,4044.7,3.14946893]
[1758774542118,9.719,4045.5,4044.9,2.47220573]
[1758774542366,22.23850082,4045.6,4044.7,0.6771]
[1758774542367,4.658,4045.4,4044.7,0.6771]
[1758774542664,4.658,4045.4,4045.3,2.47200454]
[1758774542869,4.658,4045.4,4044.9,2.4721972]
[1758774543048,4.658,4045.4,4044.3,2.4725894]
[1758774543049,3.73355784,4045.3,4044.3,2.4725894]
[1758774543252,3.73355784,4045.3,4044.4,2.47250797]
[1758774543563,6.20557841,4045.3,4044.1,0.2356]
[1758774543725,2.4721461,4045.1,4044.3,2.47256107]
[1758774543926,3.18072057,4045.3,4044.1,0.2356]
[1758774543927,3.0,4044.9,4044.1,0.2356]
[1758774544127,3.0,4044.9,4044.3,2.47260907]
[1758774544128,0.02485784,4044.8,4044.3,2.47260907]
[1758774544555,3.0,4044.9,4044.0,0.4415]
[1758774544765,4.655,4044.9,4044.2,2.47265866]
[1758774544971,4.655,4044.9,4044.0,0.6771]
[1758774545323,3.0,4045.2,4044.0,0.4415]
[1758774545523,0.02485784,4045.1,4044.9,2.472249]
[1758774545724,0.02485784,4045.1,4043.7,2.47298266]
[1758774545725,4.654,4045.0,4044.6,0.2356]
[1758774545964,4.654,4045.1,4045.0,2.47218788]
[1758774546254,4.654,4045.1,4045.0,2.70778788]
[1758774546630,4.654,4045.1,4045.0,2.47218788]
[1758774547524,22.23850082,4045.4,4044.8,2.47229252]
[1758774547724,0.38772999,4045.7,4044.9,0.2356]
[1758774547725,4.652,4045.5,4044.9,0.2356]
[1758774547921,4.652,4045.5,4045.1,2.47207605]
[1758774548474,0.792,4044.7,4042.8,0.002]
[1758774548622,22.23850082,4043.4,4042.8,0.002]
[1758774548827,4.651,4043.3,4042.8,2.47552053]
[1758774549453,3.0,4043.2,4042.8,0.002]
[1758774549861,5.47328848,4043.2,4042.8,0.002]
[1758774550171,3.0,4043.2,4042.8,0.002]
[1758774550389,5.47328848,4043.2,4042.8,0.002]
[1758774550592,0.792,4043.1,4042.4,0.002]
[1758774550775,0.792,4043.1,4041.9,0.002]
[1758774550776,3.0,4042.5,4041.9,0.002]
[1758774550952,25.23850082,4042.0,4041.9,0.002]
[1758774551188,29.88650082,4042.0,4041.9,0.002]
[1758774551981,29.88650082,4042.0,4041.9,0.6676]
[1758774552547,25.23850082,4042.0,4041.9,3.14168397]
[1758774552862,3.0,4042.0,4041.9,3.14168397]
[1758774553061,22.23850082,4042.6,4042.5,2.47371675]
[1758774553277,29.88450082,4042.6,4042.5,2.47371675]
[1758774553465,3.0,4042.5,4041.9,0.6676]
[1758774553974,3.0,4042.3,4041.9,0.6676]
[1758774554178,3.0,4042.5,4042.3,2.473807]
[1758774554364,3.0,4042.5,4042.4,2.47377795]
[1758774554685,3.0,4042.8,4042.4,0.6656]
[1758774554975,3.0,4042.8,4042.7,2.47359437]